Cogmind - Beta 13 @@@ ROGUE MODE // 2024.06.09 @ 15:36:32 Player: Trantor Result: Destroyed by S-10 Pest with Light Assault Rifle Performance ------------- Evolutions (0) 0 Regions Visited (2) 400 Robots Destroyed (29) 145 Value Destroyed (635) 635 Prototype IDs (2) 40 Alien Tech Used (0) 0 Bonus (0) 0 TOTAL SCORE: 1220 Bonus ------- None Cogmind --------- Core Integrity 0/250 Matter 292/300 Energy 250/250 System Corruption 0% Temperature Cool (0) Movement Rolling (105) Ox1 Location -10/Mines Parts ------- > --- POWER (1) -------- Ion Engine > --- PROPULSION (2) --- Wheel Compact Wheel > --- UTILITY (2) ------ Heat Sink Large Storage Unit > --- WEAPON (2) ------- Light Assault Rifle Grenade Launcher > --- INVENTORY (15) --- Ion Engine Aluminum Leg Large Matter Pod (150) Targeting Computer Hacking Suite Particle Gun Beam Cannon Beam Cannon Light Assault Rifle Light Assault Rifle Light Assault Rifle Light Cannon Light Cannon Light Cannon Datajack Peak State ------------ > --- POWER ------------ Light Nuclear Core > --- PROPULSION ------- Light Treads Light Treads > --- UTILITY ---------- Improved Heat Sink Small Storage Unit > --- WEAPON ----------- Particle Gun Light Assault Rifle > --- INVENTORY -------- Ion Engine Light Ion Engine Aluminum Leg Aluminum Leg Light Assault Rifle [Rating: 12] Favorites ----------- Power Ion Engine Engine Ion Engine Power Core Light Nuclear Core Propulsion Light Treads Treads Light Treads Leg Aluminum Leg Wheel Wheel Utility Heat Sink Device Heat Sink Storage Large Storage Unit Weapon Light Assault Rifle Energy Gun Particle Gun Ballistic Gun Light Assault Rifle Launcher Grenade Launcher Build | -11 -10 -10 ------- Run | Yrd Mat Min Slots Evolved . | . . . Power . | . . . Propulsion . | . . . Utility . | . . . Weapon . | . . . Parts Attached 22 | 2 19 1 Power 3 | . 3 . Engine 2 | . 2 . Core 1 | . 1 . Reactor . | . . . Propulsion 8 | 2 6 . Treads 3 | . 3 . Leg . | . . . Wheel 5 | 2 3 . Hover . | . . . Flight . | . . . Utility 5 | . 5 . Device 3 | . 3 . Storage 2 | . 2 . Processor . | . . . Hackware . | . . . Protection . | . . . Artifact . | . . . Weapon 6 | . 5 1 Energy Gun 1 | . 1 . Energy Cannon . | . . . Ballistic Gun 3 | . 3 . Ballistic Cannon . | . . . Launcher 2 | . 1 1 Special Weapon . | . . . Impact Weapon . | . . . Slashing Weapon . | . . . Piercing Weapon . | . . . Special Melee Weapon . | . . . Unidentified Prototypes . | . . . Parts Lost 4 | . 4 . Power 1 | . 1 . Propulsion 2 | . 2 . Utility . | . . . Weapon 1 | . 1 . Highest Loss Streak 2 | . 2 . To Critical Strikes . | . . . Average Slot Usage (%) 96 | . 96 100 Engine 9 | . 8 14 Core 4 | . 5 . Treads 21 | . 24 . Wheel 5 | . 3 28 Device 11 | . 11 14 Storage 14 | . 14 14 Energy Gun 11 | . 12 . Ballistic Gun 15 | . 15 14 Launcher 1 | . . 14 Naked Turns . | . . . Heaviest Build 50 | 13 50 30 Greatest Support 40 | 20 40 26 Greatest Overweight (x) 1 | . 1 1 Average Overweight (x) . | . . 1 Largest Inventory Capacity 20 | 8 20 15 Average Capacity 13 | 8 12 15 Most Carried 15 | 6 15 15 Average Carried 9 | 6 9 15 Final Capacity 15 | 8 15 15 Final Carried 15 | 6 15 15 Class Distribution -------------------- 96% | Mutant 3% | Scavenger-Mutant Dominant Class ---------------- Mutant | -10/Materials Mutant | -10/Mines Resources | -11 -10 -10 ----------- Run | Yrd Mat Min Matter Collected 724 | 200 512 12 Remotely . | . . . Salvage Created 881 | . 861 20 Parts 64 | . 58 6 Haulers Intercepted 2 | . 2 . Recyclers Shooed 2 | . 2 . Parts Field Recycled . | . . . Retrieved Matter . | . . . Parts Self-Destructed . | . . . Prevented . | . . . Kills | -11 -10 -10 ------- Run | Yrd Mat Min Combat Hostiles Destroyed 19 | . 16 3 Guns 13 | . 13 . AOE 5 | . 2 3 Classes Destroyed 8 | . 8 . Worker 1 | . 1 . Builder 1 | . 1 . Hauler 2 | . 2 . Recycler 2 | . 2 . Operator 3 | . 3 . Watcher 1 | . 1 . Swarmer 5 | . 2 3 Grunt 14 | . 14 . Best Kill Streak 3 | . 3 3 Combat Bots Only 3 | . 3 3 Max Kills in Single Turn 3 | . 2 3 Gunslinging . | . . . Exploded 3 | . 1 3 Melee . | . . . Uniques/NPCs Destroyed . | . . . Combat | -11 -10 -10 -------- Run | Yrd Mat Min Hostile Shots Fired 83 | . 78 5 Missed 21 | . 20 1 Damage Taken 918 | . 857 61 Core 257 | . 224 33 Absorbed by Shields . | . . . Core Remaining (%) 100 | 100 . . Volleys Fired 84 | . 83 1 Largest 2 | . 2 1 Hottest 85 | . 85 30 Shots Fired 162 | . 161 1 Gun 158 | . 158 . Cannon . | . . . Launcher 4 | . 3 1 Special . | . . . Kinetic 107 | . 107 . Thermal 51 | . 51 . Explosive 4 | . 3 1 Electromagnetic . | . . . Robot Hit Streak 7 | . 7 . Robot Miss Streak 4 | . 4 . Penetration Max . | . . . Secondary Targets 1 | . 1 . Max Gunslinging Chain 1 | . 1 . Shots Hit Robots 99 | . 99 . Core Hits 49 | . 46 3 Critical Kills . | . . . Critical Parts Destroyed 1 | . 1 . Critical Strikes 6 | . 6 . Burn 5 | . 5 . Destroy 1 | . 1 . Melee Attacks . | . . . Impact . | . . . Slashing . | . . . Piercing . | . . . Sneak Attacks . | . . . Combat Hostiles . | . . . Follow-up Attacks . | . . . Damage Inflicted 1398 | . 1278 120 Guns 1152 | . 1152 . Cannons . | . . . Explosions 246 | . 126 120 Melee . | . . . Ramming . | . . . Kinetic 576 | . 576 . Thermal 576 | . 576 . Explosive 246 | . 126 120 Electromagnetic . | . . . Impact . | . . . Slashing . | . . . Piercing . | . . . Highest Corruption . | . . . Average Corruption . | . . . Corruption Purged . | . . . Corruption Blocked . | . . . Overload Shots . | . . . Overflow Damage 10 | . 10 . Projectiles . | . . . Explosions 10 | . 10 . Melee . | . . . Knockbacks . | . . . Impact . | . . . Kinetic . | . . . Secondary . | . . . Self-Inflicted Damage 23 | . . 23 Shots 1 | . . 1 Rammed . | . . . Targets Rammed . | . . . Kicked . | . . . Crushed . | . . . Highest Temperature 454 | . 454 . Average Temperature 90 | . 90 . Received Heat Transfer 372 | . 372 . Effects 3 | . 3 . Shutdowns 1 | . 1 . Energy Bleed 2 | . 2 . Siege Activations . | . . . Robots Corrupted . | . . . Combat Hostiles . | . . . Parts Fried . | . . . Impact Corruptions . | . . . Robots Melted 1 | . 1 . Combat Hostiles 1 | . 1 . Parts Melted 3 | . 3 . Heat Transferred 1665 | . 1665 . Parts Sabotaged . | . . . Parts Stolen . | . . . Parts Stripped . | . . . Power Chain Reactions . | . . . Alert | -11 -10 -10 ------- Run | Yrd Mat Min Peak Influence 271 | . 271 133 Initial 53 | . . 53 Average 116 | . 114 132 Maximum Alert Level 1 | . 1 . Low Security (%) 97 | 100 97 100 Level 1 2 | . 2 . Level 2 . | . . . Level 3 . | . . . Level 4 . | . . . Level 5 . | . . . High Security . | . . . Max Security . | . . . Squads Dispatched 6 | . 6 . Investigation 3 | . 3 . Extermination . | . . . Reinforcement 3 | . 3 . Assault . | . . . Garrison . | . . . Intercept . | . . . Searches Triggered . | . . . Construction Impeded . | . . . Haulers Reinforced . | . . . Active Scanning Responses . | . . . Cargo Convoy Interrupts . | . . . Stealth | -11 -10 -10 --------- Run | Yrd Mat Min Distress Signals 2 | . 2 . Communications Jammed . | . . . Distress Signals . | . . . Times Spotted 37 | . 32 5 Peak Tracking Total 5 | . 5 3 Tactical Retreats 2 | . 2 . Traps | -11 -10 -10 ------- Run | Yrd Mat Min Traps Triggered 4 | . 4 . Indirectly . | . . . Trap Hack Attempts . | . . . Triggered . | . . . Disarmed . | . . . Reprogrammed . | . . . Reused . | . . . Traps Extracted . | . . . Installed . | . . . Triggered . | . . . Machines | -11 -10 -10 ---------- Run | Yrd Mat Min Machines Disabled 1 | . 1 . Max in Single Turn 1 | . 1 . Machines Repaired . | . . . Machines Dismantled . | . . . Machines Sabotaged . | . . . Overloaded Fab Kills . | . . . Hacking | -11 -10 -10 --------- Run | Yrd Mat Min Machines Accessed 7 | . 7 . Terminals 5 | . 5 . Fabricators . | . . . Repair Stations 1 | . 1 . Recycling Units 1 | . 1 . Scanalyzers . | . . . Garrison Access . | . . . Total Hacks 30 | . 30 . Successful 17 | . 17 . Failed 13 | . 13 . Catastrophic 1 | . 1 . Database Lockouts . | . . . Manual 9 | . 9 . Terminals 23 | . 23 . Fabricators . | . . . Repair Stations 6 | . 6 . Recycling Units 1 | . 1 . Scanalyzers . | . . . Garrison Access . | . . . Terminal Hacks 12 | . 12 . Record 1 | . 1 . Robot Analysis 3 | . 3 . Prototype ID Bank 1 | . 1 . Branch Access Points 1 | . 1 . Terminal Index 1 | . 1 . Repair Station Index 1 | . 1 . Alert Level 2 | . 2 . Registered Components 1 | . 1 . Zone Layout 1 | . 1 . Fabricator Hacks . | . . . Repair Station Hacks 1 | . 1 . Scan Component 1 | . 1 . Recycling Unit Hacks 1 | . 1 . Report Inventory 1 | . 1 . Scanalyzer . | . . . Garrison Access Hacks . | . . . Unauthorized Hacks 3 | . 3 . Terminals 3 | . 3 . Botnet 3 | . 3 . Fabricators . | . . . Repair Stations . | . . . Recycling Units . | . . . Scanalyzers . | . . . Garrison Access . | . . . Data Cores Recovered . | . . . Used . | . . . Hacking Detections 4 | . 4 . Full Trace Events 1 | . 1 . Feedback Events . | . . . Feedback Blocked . | . . . Robot Schematics Acquired . | . . . Robots Built . | . . . Authchips . | . . . Time . | . . . Total Robot Build Rating . | . . . Part Schematics Acquired . | . . . Parts Built . | . . . Authchips . | . . . Time . | . . . Total Part Build Rating . | . . . Parts Repaired . | . . . Time . | . . . Parts Recycled . | . . . Recycled Matter . | . . . Retrieved Matter . | . . . Retrieved Components . | . . . Parts Scanalyzed . | . . . Part Schematics Acquired . | . . . Parts Damaged . | . . . Bothacking | -11 -10 -10 ------------ Run | Yrd Mat Min Used RIF Installer . | . . . Robots Hacked . | . . . Non-combat . | . . . Combat . | . . . Robot Hacks Applied . | . . . Relay Couplers Released . | . . . Fabnet Peak Effective % . | . . . Robots Rewired . | . . . Allies Hacked . | . . . Hacks Repelled . | . . . Allies | -11 -10 -10 -------- Run | Yrd Mat Min Total Allies . | . . . Largest Group . | . . . Highest-Rated Group . | . . . Highest-Rated Ally . | . . . Total Orders . | . . . Ally Attacks . | . . . Total Damage . | . . . Kills . | . . . Allies Corrupted . | . . . Allies Melted . | . . . Intel | -11 -10 -10 ------- Run | Yrd Mat Min Robot Analysis Total 3 | . 3 . Derelict Logs Recovered . | . . . Drone Launches . | . . . Drone Recoveries . | . . . Exploration | -11 -10 -10 ------------- Run | Yrd Mat Min Turns Passed 1738 | 3 1559 176 Spaces Moved 963 | 1 798 164 Core . | . . . Treads 706 | . 706 . Legs . | . . . Wheels 257 | 1 92 164 Hover . | . . . Flight . | . . . Fastest Speed 80 | 80 80 105 Average Speed 145 | 80 154 105 Slowest Speed 240 | 80 240 105 Overloaded Moves . | . . . Propulsion Burnouts . | . . . Robots Hopped . | . . . Cave-ins Triggered . | . . . Exploration Rate (%) 45 | 2 91 44 Regions Visited 2 Branch Regions 1 Pre-discovered Areas . | . . . Known Exits Taken 1 | . 1 . Unknown Exits Taken 1 | 1 . . Scrap Searched . | . . . Spaces Dug 10 | . . 10 Terrain Destroyed 29 | . 19 10 Melee . | . . . Projectile . | . . . AOE 29 | . 19 10 Terrain Rammed . | . . . Walls Destroyed . | . . . Machines Disabled . | . . . Actions | -11 -10 -10 --------- Run | Yrd Mat Min Total 1153 | 2 985 166 Wait 61 | . 61 . Move 961 | . 797 164 Hop . | . . . Pick Up 13 | . 13 . Fast Attach 9 | . 9 . Attach 4 | . 4 . Detach 4 | . 4 . Swap 9 | 2 6 1 Drop 8 | . 8 . Fire 84 | . 83 1 Melee . | . . . Ram . | . . . Kick . | . . . Crush . | . . . Escape Stasis . | . . . Rewire . | . . . Trap . | . . . Miscellaneous . | . . . Route ------- -11/Scrapyard -10/Materials (discovered 4 exits: [*Mat x2] / *Min x2) -10/Mines History --------- Turn | Location | Event 4 | -11/Scrapyard | Discovered new exit (range 0) 4 | -11/Scrapyard | Entered Materials 4 | -10/Materials | Discovered new exit (range 8) 228 | -10/Materials | Discovered new exit (range 12) 301 | -10/Materials | Build established: Mutant 474 | -10/Materials | Identified exit to Mines 732 | -10/Materials | Core integrity fell below 50% 848 | -10/Materials | Core integrity fell below 20% 967 | -10/Materials | Discovered new exit (range 7) 1213 | -10/Materials | Discovered new exit (range 16) 1563 | -10/Materials | Entered Mines 1739 | -10/Mines | Destroyed by S-10 Pest with Light Assault Rifle Last Messages --------------- 01504_ R-06 Scavenger collects Lgt. Treads. 01504_ K-01 Serf collects debris. 01506_ Dropped Com. Wheel. 01507_ R-06 Scavenger suffers critical hit (Burn). 01508_ K-01 Serf collects debris. 01516_ R-06 Scavenger destroyed. 01516_ K-01 Serf collects debris. 01526_ Acquired 34 matter. 01538_ Destroyed Hover Unit. 01540_ O-16 Technician destroyed. 01541_ K-01 Serf collects debris. 01554_ Acquired 2 matter. LOCATION=MINES GOAL=ESCAPE 01565_ S-10 Pest destroyed. 01568_ Acquired 10 matter. 01569_ Acquired 2 matter. 01649_ T-07 Excavator is excavating. 01719_ K-01 Serf collects debris. Map ----- +----------------------------------------------------+ | ????????????????????????????????????????????????? | | ????????????????????????????????????????????????? | | ????????????????????????????????????????????????? | | ????????????????????????????????????????????????? | | ????????????????????????????????????????????????? | | ????????????????????????????????????????????????? | | ????????????????????????????????????????????????? | | ????????????????????????????????????????????????? | | ????????????????????????????????????????????????? | | ????????????????????????????????????????????????? | | ????????????????????????????????????????????????? | | ????????????????????????????? ??????????????????? | | ???????????????????????????## ?????????????????? | | ???????????????????????????# ?????????????????? | | ???????????????????????????# #?????????????????? | | ???????????????????????????# #?????????????????? | | ???????????????????????????# #?????????????????? | | ???????????????????????????# #?????????????????? | | ???????????????????????????# #?????????????????? | | ??????????????????????????## #?????????????????? | | ??????????????????????????? #?????????????????? | | ??????????????????????####?# #?????????????????? | | ?????????????????????## ### ##????????????????? | | ?????????????????????# t ##???????????????? | | ?????????????????????# t ##??????????????? | | ?????????????????##### @ #??????????????? | | ?????????? $ ##?????????????? | | ?????????? s t ##????????????? | | ?????????? ########### ## ##???????????? | | ??? ?????????????????## #### #???????????? | | ?? #?????????????????###?## #???????????? | | ?? ?????????????????????# ##???????????? | | ??# ?????????????????????# ## #????????????? | | ?## ##???????????????????## ##? #????????????? | | ?? ######???????????????# ##?? #????????????? | | ?? ???????????????# #??? #????????????? | | ??? ?????????######## #### #????????????? | | ??? ???????# #???######???? | | ???# ???????????######## ######??## ##??? | | ???# ?????????????????## #???????# #??? | | ???? ?????????????????## #???????# #??# | | ???## ??????????????????# #???????## ##?## | | ???# ##????????????????## ##???????# #### | | ???# [ #????????????????# #?####### ## | | ??## ##?????????#????## #?# ## | | ??# [*= #?????????# #??# #### | | ??# #?????????# #??# | | ??# #?????????# #??# """ | | ?## ##?#####???# ##?## ## #### """ | | ?# ##### ##?## ##?###### #??## """ | +----------------------------------------------------+ Best States ------------- Heat Dissipation 39 Energy Generation 14 Energy Capacity 250 Matter Stores 300 Matter Capacity 300 Sight Range 16 Terrain Scan Density 10 Evasion (%) 44 Recoil Reduction 2 Item Schematics ----------------- None Robot Schematics ------------------ None Fabricated ------------ Nothing Alien Tech Used ----------------- None Achievements -------------- None Challenges ------------ None Game ------ Seed ImprinterCarbideRecalibrator Manual? 0 Play Time 00:15:21 Cumulative 295.1 hours Start 2024.06.09 @ 15:21:33 End 2024.06.09 @ 15:36:32 Sessions 1 Manual Loads 0 Difficulty Rogue Special Mode None Game No. 176 Rogue 132 Adventurer 44 Explorer 0 Win Type - Total 2 Types 2/0/0/0/0/0/0/0/0 Lore% 58 Gallery% 63 Achievement% 58 Wizard Run 0 Options --------- Layout 2 ASCII 0 Keyboard 1 Movement Vi Keybinds 1 Fullscreen 2 Font 24/Smallcaps Map View 50x44 Zoom Use 0% Tactical HUD 1 Map Filters NONE Filters NONE Steam 1 RUN: 38ca7080-bc20-4ad7-84fc-aec554c8e31a